fUST/lending_fUST_20240328
["ID","MTS","AMOUNT","RATE_DAILY","PERIOD"]
[320808413,1711563049267,-857.47890009,0.00043104,2]
[320808415,1711563049278,-2618.72984991,0.00043553,2]
[320808417,1711563049290,-857.47890009,0.00043553,2]
[320808419,1711563049301,-780.1,0.00043563,4]
[320808421,1711563049312,-500.0,0.00043563,4]
[320808423,1711563049323,-3167.17,0.00043563,7]
[320808425,1711563049335,-500.0,0.00043563,4]
[320808426,1711563049350,-500.0,0.0004357,4]
[320808428,1711563049362,-1182.34,0.00043572,4]
[320808430,1711563049375,-2618.72984991,0.00044002,2]
[320808432,1711563049387,-857.47890009,0.00044002,2]
[320808434,1711563049397,-500.0,0.00044077,4]
[320808436,1711563049409,-676.64,0.00044077,4]
[320808438,1711563049420,-1661.7,0.00044077,4]
[320808441,1711563049430,-669.39,0.00044077,4]
[320808443,1711563049441,-3405.97,0.00044077,4]
[320808445,1711563049452,-3296.53,0.00044077,2]
[320808447,1711563049462,-979.89,0.00044077,4]
[320808449,1711563049473,-817.17,0.00044077,4]
[320808451,1711563049484,-500.0,0.00044077,4]
[320808453,1711563049494,-500.0,0.00044077,4]
[320808455,1711563049505,-11912.2,0.00044077,4]
[320808457,1711563049516,-595.0,0.00044077,4]
[320808459,1711563049526,-151.0,0.00044177,4]
[320808461,1711563049536,-500.0,0.00044177,4]
[320808463,1711563049547,-2618.72984991,0.00044451,2]
[320808465,1711563049559,-857.47890009,0.00044451,2]
[320808467,1711563049570,-153.0,0.00044521,2]
[320808469,1711563049582,-811.01,0.00044805,4]
[320808471,1711563049594,-500.0,0.00044805,4]
[320808473,1711563049609,-824.73,0.00044805,4]
[320808475,1711563049620,-2212.12,0.00044805,4]
[320808477,1711563049630,-500.0,0.00044805,4]
[320808480,1711563049641,-500.0,0.00044805,4]
[320808482,1711563049652,-2047.73,0.00044805,4]
[320808484,1711563049662,-2428.88,0.00044805,4]
[320808486,1711563049672,-1365.31,0.00044805,4]
[320808488,1711563049684,-2018.72,0.00044805,4]
[320808490,1711563049693,-12708.86,0.00044805,4]
[320808492,1711563049704,-163.49226545,0.00044805,4]
[320808494,1711563049715,-1007.26057735,0.000449,120]
[320808496,1711563049725,-304.5968974,0.000449,30]
[320808498,1711563049737,-2619.22,0.000449,2]
[320808500,1711563049751,-857.97,0.000449,2]
[320808502,1711563049761,-202.33530807,0.00044998,4]
[320808504,1711563049772,-229.2473732,0.00044998,4]
[320808506,1711563049786,-1000.0,0.00044999,120]
[320808508,1711563049797,-100000.0,0.00045,25]
[320808510,1711563049808,-10000.79467031,0.00045,2]
[320808512,1711563049819,-2061.67798642,0.00045,2]
[320808514,1711563049829,-196.0,0.0004502,44]
[320808516,1711563049839,-6250.0,0.00045205,120]
[320808518,1711563049855,-1500.0,0.00046,2]
[320808520,1711563049865,-1500.0,0.00046,2]
[320808522,1711563049875,-1500.0,0.00046,2]
[320808524,1711563049890,-1500.0,0.00046,2]
[320808526,1711563049901,-160.57920865,0.00046,120]
[320808529,1711563049912,-500.0,0.00046,120]
[320808531,1711563049922,-12890.83947726,0.00046,2]
[320808533,1711563049932,-780.1,0.00046302,4]
[320808535,1711563049943,-500.0,0.00046302,4]
[320808537,1711563049956,-3167.17,0.00046302,7]
[320808539,1711563049967,-500.0,0.00046302,4]
[320808541,1711563049978,-500.0,0.0004631,4]
[320808543,1711563049988,-1182.34,0.00046312,4]
[320808545,1711563049999,-2000.0,0.000468,90]
[320808547,1711563050010,-500.0,0.00046817,4]
[320808549,1711563050022,-676.64,0.00046817,4]
[320808551,1711563050033,-1661.7,0.00046817,4]
[320808553,1711563050043,-669.39,0.00046817,4]
[320808555,1711563050054,-3405.97,0.00046817,4]
[320808557,1711563050064,-3296.53,0.00046817,2]
[320808559,1711563050074,-979.89,0.00046817,4]
[320808561,1711563050085,-817.17,0.00046817,4]
[320808563,1711563050104,-500.0,0.00046817,4]
[320808565,1711563050117,-500.0,0.00046817,4]
[320808567,1711563050128,-11912.2,0.00046817,4]
[320808569,1711563050139,-595.0,0.00046817,4]
[320808571,1711563050150,-151.0,0.00046917,4]
[320808573,1711563050163,-500.0,0.00046917,4]
[320808575,1711563050173,-235313.31187529,0.0004698,120]
[320808845,1711564162164,-302.75399207,0.00020544,2]
[320808846,1711564162191,-158.9916691,0.00020545,2]
[320808847,1711564162218,-200.0,0.00020611,2]
[320808848,1711564162244,-625.9969173,0.00020897,2]
[320808849,1711564162272,-2317.30049968,0.00020898,2]
[320808850,1711564162300,-1618.5968338,0.00021107,2]
[320808851,1711564162326,-160.87070723,0.00021108,2]
[320808852,1711564162351,-326.05635795,0.00021108,2]
[320808853,1711564162375,-161.65637645,0.00021109,2]
[320808854,1711564162400,-162.900144,0.00021483,2]
[320808855,1711564162425,-396.39215654,0.00021757,2]
[320808856,1711564162452,-395.326302,0.00021757,2]
[320808857,1711564162477,-690.8650514,0.00021757,2]
[320808858,1711564162503,-166.666666,0.00021918,2]
[320808859,1711564162529,-24900.0,0.00021976,2]
[320808860,1711564162558,-166.666666,0.00022431,2]
[320808861,1711564162585,-574.59037177,0.00022619,2]
[320808862,1711564162609,-1547.52596593,0.00022628,2]
[320808863,1711564162637,-500.0,0.00022629,2]
[320808864,1711564162661,-166.666666,0.00022944,2]
[320808865,1711564162686,-241.83291114,0.00023,2]
[320808866,1711564162711,-234.15972561,0.00023356,2]
[320808867,1711564162735,-166.666666,0.00023456,2]
[320808868,1711564162760,-166.666666,0.00023969,2]
[320808869,1711564162786,-3133.293115,0.00024434,2]
[320808870,1711564162813,-166.666666,0.00024482,2]
[320808871,1711564162838,-234.15972558,0.00024519,2]
[320808872,1711564162862,-500.0,0.00024657,2]
[320808873,1711564162887,-215.16042421,0.00024748,2]
[320808874,1711564162912,-155.30721631,0.00024748,2]
[320808875,1711564162937,-205.37769357,0.00024748,2]
[320808876,1711564162965,-500.0,0.00024899,2]
[320808877,1711564162991,-557.37484775,0.00024899,2]
[320808878,1711564163016,-155.24986534,0.00024998,2]
[320808879,1711564163045,-470.78444184,0.00024998,2]
[320808880,1711564163071,-523.44571786,0.00024998,2]
[320808881,1711564163096,-187.66313006,0.00024998,2]
[320808882,1711564163121,-276.39532873,0.00024998,2]
[320808883,1711564163147,-3480.2183158,0.00024998,2]
[320808884,1711564163173,-397.6682168,0.00024999,2]
[320808885,1711564163198,-292.29835469,0.00024999,2]
[320808886,1711564163226,-500.0,0.00024999,2]
[320808887,1711564163252,-515.34,0.00024999,2]
[320808888,1711564163278,-500.0,0.00024999,2]
[320808889,1711564163305,-500.0,0.00024999,2]
[320808890,1711564163331,-500.0,0.00024999,2]
[320808891,1711564163357,-500.0,0.00024999,2]
[320808892,1711564163383,-500.0,0.00024999,2]
[320808893,1711564163409,-500.0,0.00024999,2]
[320808894,1711564163434,-500.0,0.00024999,2]
[320808895,1711564163461,-500.0,0.00024999,2]
[320808896,1711564163491,-500.0,0.00024999,2]
[320808897,1711564163519,-616.78,0.00024999,2]
[320808898,1711564163547,-309.8825653,0.00024999,2]
[320808899,1711564163573,-500.0,0.00024999,2]
[320808900,1711564163598,-500.0,0.00024999,2]
[320808901,1711564163626,-627.21,0.00024999,2]
[320808902,1711564163653,-500.0,0.00024999,2]
[320808903,1711564163679,-500.0,0.00024999,2]
[320808904,1711564163706,-8706.42,0.00024999,2]
[320808905,1711564163732,-500.0,0.00024999,2]
[320808906,1711564163758,-500.0,0.00024999,2]
[320808907,1711564163783,-1682.34,0.00024999,2]
[320808908,1711564163931,-500.0,0.00024999,2]
[320808909,1711564163960,-967.09,0.00024999,2]
[320808910,1711564163987,-500.0,0.00024999,2]
[320808911,1711564164013,-1847.18,0.00024999,2]
[320808912,1711564164046,-500.0,0.00024999,2]
[320808913,1711564164072,-500.79872623,0.00024999,2]
[320808914,1711564164102,-1552.86,0.00024999,2]
[320808915,1711564164131,-500.0,0.00024999,2]
[320808916,1711564164159,-1530.87,0.00024999,2]
[320808917,1711564164185,-500.0,0.00024999,2]
[320808918,1711564164212,-500.0,0.00024999,2]
[320808919,1711564164240,-4809.41060549,0.00025,2]
[320808920,1711564164268,-544.78,0.00025368,2]
[320808921,1711564164296,-500.0,0.00025368,2]
[320808922,1711564164321,-500.0,0.00025368,2]
[320808923,1711564164347,-500.0,0.00025368,2]
[320808924,1711564164374,-500.0,0.00025368,2]
[320808925,1711564164400,-500.0,0.00025368,2]
[320808926,1711564164426,-500.0,0.00025368,2]
[320808927,1711564164451,-500.0,0.00025368,2]
[320808928,1711564164477,-1198.27,0.00025368,2]
[320808929,1711564164503,-500.0,0.00025368,2]
[320808930,1711564164530,-2454.68,0.00025368,2]
[320808931,1711564164559,-500.0,0.00025368,2]
[320808932,1711564164586,-500.0,0.00025368,2]
[320808933,1711564164615,-500.0,0.00025368,2]
[320808934,1711564164643,-704.38,0.00025368,2]
[320808935,1711564164671,-500.09678149,0.00025627,2]
[320808936,1711564164697,-234.4551374,0.00025665,2]
[320808937,1711564164721,-300.83471459,0.00025665,2]
[320808938,1711564164746,-500.0,0.00025665,2]
[320808939,1711564164771,-339.82555787,0.00025665,2]
[320808940,1711564164795,-500.0,0.00025665,2]
[320808941,1711564164820,-500.0,0.00025665,2]
[320808942,1711564164849,-482.26506948,0.00025665,2]
[320808943,1711564164878,-154.14705046,0.00025665,2]
[320808944,1711564164907,-500.0,0.00025665,2]
[320808945,1711564164936,-500.0,0.00025665,2]
[320808946,1711564164964,-500.0,0.00025665,2]
[320808947,1711564164990,-323.53995753,0.00025665,2]
[320808948,1711564165016,-500.0,0.00025665,2]
[320808949,1711564165045,-500.0,0.00025666,2]
[320808950,1711564165070,-500.0,0.00025666,2]
[320808951,1711564165096,-151.0,0.00025666,2]
[320808952,1711564165120,-310.47759429,0.00025666,2]
[320808953,1711564165147,-500.0,0.00025666,2]
[320808954,1711564165171,-310.31962922,0.00025666,2]
[320808955,1711564165196,-500.0,0.00025666,2]
[320808956,1711564165222,-500.0,0.00025666,2]
[320808957,1711564165247,-500.0,0.00025666,2]
[320808958,1711564165280,-500.0,0.00025666,2]
[320808959,1711564165312,-500.0,0.00025666,2]
[320808960,1711564165346,-500.0,0.00025666,2]
[320808961,1711564165372,-500.0,0.00025666,2]
[320808962,1711564165403,-465.47789065,0.00025666,2]
[320808963,1711564165432,-500.0,0.00025666,2]
[320808964,1711564165461,-500.0,0.00025666,2]
[320808965,1711564165490,-500.0,0.00025666,2]
[320808966,1711564165520,-283.65870526,0.00025666,2]
[320808967,1711564165551,-500.11118744,0.00025666,2]
[320808968,1711564165581,-603.24,0.00025666,2]
[320808969,1711564165606,-500.57846262,0.00025666,2]
[320808970,1711564165637,-9724.09,0.00025666,2]
[320808971,1711564165665,-500.0,0.00025666,2]
[320808972,1711564165695,-500.0,0.00025666,2]
[320808973,1711564165725,-500.0,0.00025666,2]
[320808974,1711564165757,-500.34907056,0.00025666,2]
[320808975,1711564165789,-500.0,0.00025666,2]
[320808976,1711564165821,-500.0,0.00025666,2]
[320808977,1711564165847,-520.38402693,0.00025666,2]
[320808978,1711564165879,-500.0,0.00025666,2]
[320808979,1711564165907,-500.0,0.00025666,2]
[320808980,1711564165937,-500.0,0.00025666,2]
[320808981,1711564165964,-500.0,0.00025666,2]
[320808982,1711564165992,-500.0,0.00025666,2]
[320808983,1711564166022,-500.0,0.00025666,2]
[320808984,1711564166051,-5000.0,0.00025675,30]
[320808985,1711564166080,-234.15972558,0.00025682,2]
[320808986,1711564166113,-155.03578045,0.00026,2]
[320808987,1711564166142,-557.37484775,0.00026269,2]
[320808988,1711564166171,-234.15972558,0.00026845,2]
[320808989,1711564166201,-1620.29999842,0.00027,2]
[320808990,1711564166229,-779.12569242,0.00027396,2]
[320808991,1711564166255,-2111.45,0.00027397,7]
[320808992,1711564166285,-552.84411312,0.00027397,2]
[320808993,1711564166314,-552.84411312,0.00027397,2]
[320808994,1711564166345,-552.84411312,0.00027397,2]
[320808995,1711564166374,-552.84411312,0.00027397,2]
[320808996,1711564166403,-552.84411312,0.00027397,2]
[320808997,1711564166433,-552.84411312,0.00027397,2]
[320808998,1711564166461,-552.84411312,0.00027397,2]
[320808999,1711564166490,-552.84411312,0.00027397,2]
[320809000,1711564166519,-552.84411312,0.00027397,2]
[320809001,1711564166547,-552.84411312,0.00027397,2]
[320809002,1711564166577,-552.84411312,0.00027397,2]
[320809003,1711564166604,-552.84411312,0.00027397,2]
[320809004,1711564166634,-552.84411312,0.00027397,2]
[320809005,1711564166662,-552.84411312,0.00027397,2]
[320809006,1711564166690,-552.84411312,0.00027397,2]
[320809007,1711564166864,-552.84411312,0.00027397,2]
[320809008,1711564166892,-552.84411312,0.00027397,2]
[320809009,1711564166919,-552.84411312,0.00027397,2]
[320809010,1711564166944,-552.84411312,0.00027397,2]
[320809011,1711564166970,-552.84411312,0.00027397,2]
[320809012,1711564166995,-552.84411312,0.00027397,2]
[320809013,1711564167023,-552.84411312,0.00027397,2]
[320809014,1711564167050,-552.84411312,0.00027397,2]
[320809015,1711564167075,-552.84411312,0.00027397,2]
[320809016,1711564167101,-552.84411312,0.00027397,2]
[320809017,1711564167127,-552.84411312,0.00027397,2]
[320809018,1711564167153,-552.84411312,0.00027397,2]
[320809019,1711564167178,-552.84411312,0.00027397,2]
[320809020,1711564167204,-552.84411312,0.00027397,2]
[320809021,1711564167230,-552.84411312,0.00027397,2]
[320809022,1711564167257,-552.84411312,0.00027397,2]
[320809023,1711564167284,-552.84411312,0.00027397,2]
[320809024,1711564167313,-552.84411312,0.00027397,2]
[320809025,1711564167340,-552.84411312,0.00027397,2]
[320809026,1711564167366,-552.84411312,0.00027397,2]
[320809027,1711564167394,-552.84411312,0.00027397,2]
[320809028,1711564167420,-552.84411312,0.00027397,2]
[320809029,1711564167445,-552.84411312,0.00027397,2]
[320809030,1711564167473,-552.84411312,0.00027397,2]
[320809031,1711564167498,-552.84411312,0.00027397,2]
[320809032,1711564167527,-552.84411312,0.00027397,2]
[320809033,1711564167555,-552.84411312,0.00027397,2]
[320809034,1711564167580,-552.84411312,0.00027397,2]
[320809035,1711564167606,-552.84411312,0.00027397,2]
[320809036,1711564167632,-552.84411312,0.00027397,2]
[320809037,1711564167657,-552.84411312,0.00027397,2]
[320809038,1711564167683,-552.84411312,0.00027397,2]
[320809039,1711564167709,-552.84411312,0.00027397,2]
[320809040,1711564167734,-552.84411312,0.00027397,2]
[320809041,1711564167758,-552.84411312,0.00027397,2]
[320809042,1711564167783,-552.84411312,0.00027397,2]
[320809043,1711564167809,-552.84411312,0.00027397,2]
[320809044,1711564167834,-552.84411312,0.00027397,2]
[320809045,1711564167860,-552.84411312,0.00027397,2]
[320809046,1711564167886,-551.34993983,0.00027397,2]
[320809047,1711564167911,-551.34993983,0.00027397,2]
[320809048,1711564167950,-551.34993983,0.00027397,2]
[320809049,1711564167981,-551.34993983,0.00027397,2]
[320809050,1711564168009,-551.34993983,0.00027397,2]
[320809051,1711564168040,-551.34993983,0.00027397,2]
[320809052,1711564168068,-551.34993983,0.00027397,2]
[320809053,1711564168096,-551.34993983,0.00027397,2]
[320809054,1711564168123,-551.34993983,0.00027397,2]
[320809055,1711564168152,-551.34993983,0.00027397,2]
[320809056,1711564168180,-551.34993983,0.00027397,2]
[320809057,1711564168207,-551.34993983,0.00027397,2]
[320809058,1711564168235,-551.34993983,0.00027397,2]
[320809059,1711564168264,-551.34993983,0.00027397,2]
[320809060,1711564168291,-551.34993983,0.00027397,2]
[320809061,1711564168318,-551.34993983,0.00027397,2]
[320809062,1711564168344,-551.34993983,0.00027397,2]
[320809063,1711564168373,-551.34993983,0.00027397,2]
[320809064,1711564168399,-551.34993983,0.00027397,2]
[320809065,1711564168426,-551.34993983,0.00027397,2]
[320809066,1711564168452,-551.34993983,0.00027397,2]
[320809067,1711564168479,-551.34993983,0.00027397,2]
[320809068,1711564168505,-551.34993983,0.00027397,2]
[320809069,1711564168533,-551.34993983,0.00027397,2]
[320809070,1711564168559,-551.34993983,0.00027397,2]
[320809071,1711564168587,-551.34993983,0.00027397,2]
[320809072,1711564168614,-551.34993983,0.00027397,2]
[320809073,1711564168642,-551.34993983,0.00027397,2]
[320809074,1711564168668,-551.34993983,0.00027397,2]
[320809075,1711564168694,-551.34993983,0.00027397,2]
[320809076,1711564168719,-551.34993983,0.00027397,2]
[320809077,1711564168755,-551.34993983,0.00027397,2]
[320809078,1711564168784,-551.34993983,0.00027397,2]
[320809079,1711564168953,-551.34993983,0.00027397,2]
[320809080,1711564168981,-557.47605029,0.00027397,2]
[320809081,1711564169009,-557.47605029,0.00027397,2]
[320809082,1711564169037,-557.47605029,0.00027397,2]
[320809083,1711564169067,-557.47605029,0.00027397,2]
[320809084,1711564169093,-557.47605029,0.00027397,2]
[320809085,1711564169119,-2060.33,0.00027397,2]
[320809086,1711564169145,-2111.45,0.00027638,7]
[320809087,1711564169171,-500.0,0.00027638,2]
[320809088,1711564169196,-557.37484775,0.00027639,2]
[320809089,1711564169223,-111901.10069334,0.00027739,3]
[320809090,1711564169250,-616.78,0.00027739,2]
[320809091,1711564169276,-627.21,0.00027739,2]
[320809092,1711564169303,-8706.42,0.00027739,2]
[320809093,1711564169329,-500.0,0.00027739,2]
[320809094,1711564169355,-500.0,0.00027739,2]
[320809095,1711564169381,-1682.34,0.00027739,2]
[320809096,1711564169406,-967.09,0.00027739,2]
[320809097,1711564169432,-294.98058405,0.00027739,2]
[320809098,1711564169461,-1847.18,0.00027739,2]
[320809099,1711564169491,-1552.86,0.00027739,2]
[320809100,1711564169518,-1530.87,0.00027739,2]
[320809101,1711564169549,-500.0,0.00027739,2]
[320809102,1711564169580,-505.23653332,0.00028,2]
[320809103,1711564169607,-234.15972558,0.00028008,2]
[320809104,1711564169633,-544.78,0.00028108,2]
[320809105,1711564169658,-500.0,0.00028108,2]
[320809106,1711564169684,-500.0,0.00028108,2]
[320809107,1711564169711,-500.0,0.00028108,2]
[320809108,1711564169737,-500.0,0.00028108,2]
[320809109,1711564169764,-500.0,0.00028108,2]
[320809110,1711564169790,-500.0,0.00028108,2]
[320809111,1711564169818,-1198.27,0.00028108,2]
[320809112,1711564169845,-500.0,0.00028108,2]
[320809113,1711564169871,-2454.68,0.00028108,2]
[320809114,1711564169897,-2060.33,0.00028108,2]
[320809115,1711564169924,-500.0,0.00028108,2]
[320809116,1711564169949,-704.38,0.00028108,2]
[320809117,1711564169975,-500.0,0.00028406,2]
[320809118,1711564170002,-500.0,0.00028406,2]
[320809119,1711564170027,-151.0,0.00028406,2]
[320809120,1711564170060,-500.0,0.00028406,2]
[320809121,1711564170086,-500.0,0.00028406,2]
[320809123,1711564170111,-500.0,0.00028406,2]
[320809125,1711564170136,-500.0,0.00028406,2]
[320809126,1711564170161,-603.24,0.00028406,2]
[320809127,1711564170188,-9724.09,0.00028406,2]
[320809128,1711564170215,-500.0,0.00028406,2]
[320809129,1711564170242,-500.0,0.00028406,2]
[320809130,1711564170270,-500.0,0.00028406,2]
[320809131,1711564170300,-925.63844725,0.0003,4]
[320809132,1711564170326,-598.48601028,0.0003,2]
[320809133,1711564170352,-186.47837,0.0003,4]
[320809134,1711564170389,-200.0,0.0003,2]
[320809135,1711564170671,500.0,0.00025666,2]
[320809136,1711564170708,192.62329484,0.00028406,2]
[320809137,1711564170762,5000.0,0.0003,2]
[320809138,1711564171136,500.0,0.00024999,2]
[320809139,1711564171396,500.0,0.00027739,2]
[320809140,1711564175900,8913.75,0.00024999,2]
[320809141,1711564176169,8913.75,0.00027739,2]
[320809142,1711564176731,5000.0,0.0003,2]
[320809183,1711564233338,-166.666666,0.00021918,2]
[320809184,1711564233347,-166.666666,0.00022431,2]
[320809186,1711564233360,-166.666666,0.00022944,2]
[320809188,1711564233369,-166.666666,0.00023456,2]
[320809190,1711564233378,-166.666666,0.00023969,2]
[320809191,1711564233387,-166.666666,0.00024482,2]
[320809193,1711564233397,-500.0,0.00024999,2]
[320809195,1711564233405,-500.0,0.00024999,2]
[320809196,1711564233415,-500.0,0.00024999,2]
[320809199,1711564233424,-500.0,0.00024999,2]
[320809202,1711564233434,-4424.86986131,0.00025368,2]
[320809281,1711564238650,-3556.01013869,0.00025368,2]
[320809283,1711564238660,-1542.14,0.00025368,2]
[320809285,1711564238668,-500.0,0.00025666,2]
[320809287,1711564238677,-500.0,0.00025666,2]
[320809289,1711564238685,-500.0,0.00025666,2]
[320809290,1711564238695,-500.0,0.00025666,2]
[320809292,1711564238704,-834.12064428,0.00025908,2]
[320809295,1711564238713,-500.0,0.00027739,2]
[320809298,1711564238722,-500.0,0.00027739,2]
[320809300,1711564238731,-500.0,0.00027739,2]
[320809303,1711564238741,-7980.88,0.00028108,2]
[320809305,1711564238751,-1542.14,0.00028108,2]
[320809307,1711564238762,-500.0,0.00028406,2]
[320809309,1711564238771,-500.0,0.00028406,2]
[320809312,1711564238780,-5000.0,0.0003,2]
[320809314,1711564238789,-6250.0,0.00030137,120]
[320809316,1711564238799,-328.56845406,0.00030278,4]
[320809317,1711564238808,-500.0,0.00030278,2]
[320809319,1711564238818,-500.0,0.00030278,2]
[320809321,1711564238832,-500.0,0.00030278,2]
[320809323,1711564238841,-500.0,0.00030278,2]
[320809326,1711564238851,-500.0,0.00030278,2]
[320809327,1711564238862,-500.0,0.00030278,2]
[320809329,1711564238871,-507.79589775,0.00030278,2]
[320809332,1711564238881,-402.0,0.00030279,2]
[320809333,1711564238890,-34010.60837047,0.00030279,2]
[320809334,1711564238900,-2111.45,0.00030378,7]
[320809335,1711564238909,-500.0,0.00030378,2]
[320809336,1711564238919,-479.02411571,0.00030477,4]
[320809338,1711564238928,-925.63844725,0.00030477,4]
[320809340,1711564238938,-598.48601028,0.00030478,2]
[320809342,1711564238948,-2176.98656217,0.00030478,2]
[320809344,1711564238958,-616.78,0.00030479,2]
[320809346,1711564238968,-627.21,0.00030479,2]
[320809348,1711564238977,-500.0,0.00030479,2]
[320809350,1711564238987,-500.0,0.00030479,2]
[320809352,1711564238997,-967.09,0.00030479,2]
[320809354,1711564239006,-1847.18,0.00030479,2]
[320809356,1711564239015,-1552.86,0.00030479,2]
[320809358,1711564239025,-1530.87,0.00030479,2]
[320809360,1711564239035,-500.0,0.00030479,2]
[320809362,1711564239044,-8913.75,0.00030479,2]
[320809364,1711564239053,-500.0,0.00030479,2]
[320809366,1711564239062,-500.0,0.00030479,2]
[320809368,1711564239071,-500.0,0.00030479,2]
[320809370,1711564239081,-500.0,0.00030848,2]
[320809372,1711564239090,-500.0,0.00030848,2]
[320809374,1711564239099,-1198.27,0.00030848,2]
[320809376,1711564239110,-500.0,0.00030848,2]
[320809378,1711564239119,-2454.68,0.00030848,2]
[320809380,1711564239128,-2060.33,0.00030848,2]
[320809382,1711564239137,-500.0,0.00030848,2]
[320809384,1711564239147,-704.38,0.00030848,2]
[320809386,1711564239156,-7980.88,0.00030848,2]
[320809388,1711564239165,-1542.14,0.00030848,2]
[320809390,1711564239174,-834.12064428,0.00030908,2]
[320809392,1711564239183,-500.0,0.00031146,2]
[320809394,1711564239193,-151.0,0.00031146,2]
[320809396,1711564239202,-534.61946006,0.00031146,2]
[320809398,1711564239212,-500.0,0.00031146,2]
[320809400,1711564239222,-500.0,0.00031146,2]
[320809402,1711564239231,-207.00769808,0.00031146,2]
[320809404,1711564239240,-603.24,0.00031146,2]
[320809406,1711564239250,-500.0,0.00031146,2]
[320809408,1711564239259,-500.0,0.00031146,2]
[320809410,1711564239269,-395.326302,0.00032636,2]
[320809412,1711564239278,-215.37200309,0.00033,4]
[320809414,1711564239287,-2111.45,0.00033118,7]
[320809416,1711564239297,-500.0,0.00033118,2]
[320809418,1711564239306,-616.78,0.00033218,2]
[320809420,1711564239314,-627.21,0.00033218,2]
[320809422,1711564239323,-477.63994533,0.00033218,2]
[320809424,1711564239332,-500.0,0.00033218,2]
[320809426,1711564239341,-967.09,0.00033218,2]
[320809427,1711564239350,-1847.18,0.00033218,2]
[320809429,1711564239360,-1552.86,0.00033218,2]
[320809430,1711564239370,-1530.87,0.00033218,2]
[320809431,1711564239379,-500.0,0.00033218,2]
[320809432,1711564239390,-8913.75,0.00033218,2]
[320809433,1711564239399,-500.0,0.00033218,2]
[320809434,1711564239412,-500.0,0.00033218,2]
[320809435,1711564239421,-500.0,0.00033218,2]
[320809436,1711564239430,-500.0,0.00033587,2]
[320809437,1711564239439,-500.0,0.00033587,2]
[320809438,1711564239449,-1198.27,0.00033587,2]
[320809439,1711564239458,-500.0,0.00033587,2]
[320809440,1711564239467,-2454.68,0.00033587,2]
[320809441,1711564239477,-2060.33,0.00033587,2]
[320809442,1711564239486,-704.38,0.00033587,2]
[320809443,1711564239495,-7980.88,0.00033587,2]
[320809444,1711564239504,-1542.14,0.00033587,2]
[320809445,1711564239515,-230.42817844,0.00033885,2]
[320809446,1711564239630,-151.0,0.00033885,2]
[320809447,1711564239641,-500.0,0.00033885,2]
[320809448,1711564239651,-603.24,0.00033885,2]
[320809449,1711564239659,-500.0,0.00033885,2]
[320809450,1711564239668,-500.0,0.00033885,2]
[320809451,1711564239677,-462.73220732,0.00034,4]
[320809452,1711564239686,-666.05455207,0.00035,2]
[320809453,1711564239695,-6904.89180487,0.00035,4]
[320809454,1711564239705,-19245.92065601,0.00035,30]
[320809455,1711564239714,-848.11834546,0.00035,2]
[320809456,1711564239723,-155.00620025,0.00035,4]
[320809457,1711564239732,-6250.0,0.0003516,120]
[320809458,1711564239741,-2111.45,0.00035858,7]
[320809459,1711564239750,-500.0,0.00035858,4]
[320809460,1711564239759,-57378.7159613,0.00035958,3]
[320809461,1711564239771,-3485.30142497,0.00035958,3]
[320809509,1711564240735,-685.81,0.00035958,3]
[320809511,1711564240747,-4436.06868423,0.00035958,3]
[320809516,1711564240787,-6477.54312776,0.00035958,3]
[320809519,1711564240802,-2341.48143201,0.00035958,3]